[Event "14th Karen Asrian Memorial 2024"]
[Site "Yerevan"]
[Date "2024.04.28"]
[Round "5.6"]
[White "Sahakyan, Aleks"]
[Black "Hakobyan, Erik"]
[Result "1/2-1/2"]
[ECO "D27"]
[WhiteElo "2339"]
[BlackElo "2383"]
[Annotator "TA"]
[PlyCount "161"]
[EventDate "2024.04.24"]
[EventType "swiss"]
[EventCountry "ARM"]
[SourceTitle "playchess.com"]
[Source "ChessBase"]
[SourceQuality "1"]
[TimeControl "40/5400+30:1800+30"]

{[%evp 17,161,24,53,37,42,34,33,36,33,32,57,30,43,33,39,36,48,32,37,39,41,20,23,9,36,23,41,14,17,21,20,12,23,25,37,27,34,8,3,4,7,7,8,6,85,53,45,-37,-37,-92,-93,-120,-120,-120,-120,-120,-120,-120,-120,-120,-120,-120,-120,-120,-120,-120,-120,-120,-114,-114,-114,-114,-114,-114,-114,-114,-114,-114,-114,-114,-114,-114,-113,-113,-104,-104,-70,-70,-44,-51,-44,-44,-25,-25,-25,-32,-32,-33,-33,-61,-60,-61,-61,-61,-33,-33,-32,-32,-32,-33,-33,-44,-33,-33,-25,-33,-33,-33,-33,-44,-53,-70,-25,-22,-22,-22,-9,-10,-9,-15,-8,-8,-8,-8,-8,-8,-8,-8,-8,-8,-8,-8,-8,-8,-8,-8]} 1. d4 {[%emt 0:00:02]} d5 {[%emt 0:03:43]} 2. Nf3 {[%emt 0:00:14]} Nf6 {[%emt 0:00:22]} 3. c4 {[%emt 0:00:07]} dxc4 {[%emt 0:00:30]} 4. e3 {[%emt 0:00:06]} e6 {[%emt 0:00:05]} 5. Bxc4 {[%emt 0:00:05]} c5 {[%emt 0:00:04]} 6. O-O {[%emt 0:00:09]} Nc6 {[%emt 0:01:44]} 7. Nc3 {[%emt 0:00:05][%cal Bb1c3,Bc3a4,Ba4b6][%mdl 32]} a6 {[%emt 0:00:33]} 8. dxc5 {[%emt 0:05:52]} Bxc5 {[%emt 0:11:20]} 9. Qxd8+ {[%emt 0:01:25]} Kxd8 {[%emt 0:01:06]} 10. b3 {[%emt 0:02:32]} Ke7 {[%emt 0:02:28]} 11. Na4 {[%emt 0:06:23]} Bd6 {[%emt 0:08:59]} 12. Nb6 {[%emt 0:00:17] White is slightly better.} Rb8 {[%emt 0:00:06]} 13. Bb2 {[%emt 0:00:46]} Bc5 {[%emt 0:00:35]} 14. Nxc8+ {[%emt 0:00:37]} Rbxc8 {[%emt 0:00:13]} 15. Rac1 {[%emt 0:01:06][%cal Oc4a6]} Bd6 {[%emt 0:00:29]} 16. Rfd1 {[%emt 0:04:51]} Rhd8 {[%emt 0:00:29]} 17. Bd3 {[%emt 0:03:43]} h6 {[%emt 0:05:58]} 18. Kf1 {[%emt 0:01:45]} Rc7 {[%emt 0:21:58]} 19. Ke2 {[%emt 0:06:46]} Rdc8 {[%emt 0:01:47]} 20. Bb1 {[%emt 0:03:21]} Nd5 {[%emt 0:13:31]} 21. g3 {[%emt 0:05:52][%cal Oe3e4]} (21. Bxg7 $2 Nd4+ 22. Nxd4 Rxc1 23. Rxc1 Rxc1 $17) 21... f6 {[%emt 0:02:25]} 22. Rc2 {[%emt 0:05:15]} Nd8 {[%emt 0:01:58]} 23. Rdc1 {[%emt 0:13:18]} Rxc2+ {[%emt 0:00:53]} 24. Rxc2 {[%emt 0:00:04]} Rxc2+ {[%emt 0:01:12]} 25. Bxc2 {[%emt 0:00:02]} Nc6 {[%emt 0:02:04]} 26. h4 {[%emt 0:02:08]} Bb4 {[%emt 0:04:06]} 27. a3 {[%emt 0:01:24]} Bc3 {[%emt 0:00:54]} 28. Bc1 {[%emt 0:00:01]} f5 {[%emt 0:00:35]} 29. e4 {[%emt 0:01:03]} fxe4 {[%emt 0:00:28]} 30. Bxe4 {[%emt 0:00:33]} Nd4+ {[%emt 0:04:40]} (30... Bf6 $11) 31. Nxd4 {[%emt 0:01:25]} Bxd4 $16 {[%emt 0:00:07][%mdl 4096] Endgame. KBB-KBN} 32. Kd3 {[%emt 0:00:13] Against Nc3} ({Better is} 32. Bxd5 $14 exd5 33. g4) 32... Bxf2 $15 {[%emt 0:00:50]} 33. Bb2 {[%emt 0:01:36]} (33. Bf4 $1 $15) 33... Bxg3 $17 {[%emt 0:02:00]} 34. Bxg7 {[%emt 0:00:06]} h5 {[%emt 0:00:20]} ({Reject} 34... Bxh4 $6 35. Bxd5 exd5 36. Bxh6 $15) 35. Bh6 {[%emt 0:03:30]} Bxh4 {[%emt 0:01:38]} 36. Bf3 {[%emt 0:01:34] [#]} Bg3 $1 {[%emt 0:00:46]} 37. Bg5+ {[%emt 0:00:22]} Kd7 {[%emt 0:00:17]} 38. Bxh5 {[%emt 0:00:23] [#]} Bf4 $1 {[%emt 0:00:03]} 39. Bh4 {[%emt 0:01:43]} Bd6 {[%emt 0:00:04]} 40. Bf3 {[%emt 0:00:00]} Bxa3 {[%emt 0:00:00]} 41. Kd4 {[%emt 0:02:19]} Bb2+ {[%emt 0:00:44]} 42. Kc4 {[%emt 0:02:18]} b5+ {[%emt 0:04:12]} 43. Kc5 {[%emt 0:00:25]} Ba3+ {[%emt 0:03:17]} 44. Kd4 {[%emt 0:00:06]} Kd6 {[%emt 0:01:06]} 45. Bg3+ {[%emt 0:01:08]} Kc6 {[%emt 0:00:16]} 46. Ke5 {[%emt 0:02:05]} Kd7 {[%emt 0:00:14] ...Bd6+ is the strong threat.} 47. Kd4 {[%emt 0:00:07]} Bd6 {[%emt 0:02:08]} 48. Be1 {[%emt 0:00:26]} Ne7 {[%emt 0:03:49]} 49. Bb7 {[%emt 0:02:20]} Kc7 {[%emt 0:00:53]} 50. Bg2 {[%emt 0:00:02]} (50. Bxa6 $2 {is the wrong capture.} Kb6 51. Bxb5 Kxb5 $19) 50... Kb6 {[%emt 0:04:59]} 51. Bh3 {[%emt 0:02:38]} e5+ {[%emt 0:02:12]} 52. Ke4 {[%emt 0:00:54]} Nc6 {[%emt 0:01:27]} 53. Kd5 {[%emt 0:01:37]} Kc7 {[%emt 0:01:09]} 54. Bg4 {[%emt 0:02:29]} a5 {[%emt 0:02:40]} 55. Be2 {[%emt 0:02:28]} Ne7+ {[%emt 0:02:30]} 56. Ke4 {[%emt 0:03:13]} Kb6 {[%emt 0:02:23]} 57. Bf2+ {[%emt 0:01:15]} Bc5 {[%emt 0:01:06]} 58. Bh4 {[%emt 0:06:25]} (58. Bxc5+ Kxc5 59. Bd3 a4 (59... Nc6 $2 60. Bb1 $19) 60. bxa4 bxa4 $19) 58... Nc6 {[%emt 0:00:36]} 59. Bd1 {[%emt 0:01:41]} Bd4 {[%emt 0:02:10]} 60. Kd5 {[%emt 0:00:28]} Kc7 {[%emt 0:00:57]} 61. Be1 {[%emt 0:01:03]} Kb7 {[%emt 0:01:13]} 62. Bd2 {[%emt 0:02:50]} Kb6 {[%emt 0:00:16]} 63. Be1 {[%emt 0:00:32]} Ne7+ {[%emt 0:00:38]} 64. Ke4 {[%emt 0:02:56]} Ng6 {[%emt 0:01:52]} 65. Bd2 {[%emt 0:00:30]} Nf8 {[%emt 0:00:33]} 66. Kd5 {[%emt 0:00:47]} Nd7 {[%emt 0:00:26]} 67. Bg5 {[%emt 0:01:09] Dodges Nf6+} Kc7 {[%emt 0:00:28]} 68. Ke6 {[%emt 0:03:53]} Nc5+ {[%emt 0:02:01]} 69. Kd5 {[%emt 0:00:17]} a4 {[%emt 0:03:32]} 70. bxa4 {[%emt 0:00:45]} Nxa4 {[%emt 0:00:42] Hoping for ...Nc3+. The position is equal.} 71. Bc2 {[%emt 0:05:30]} Nb6+ {[%emt 0:00:36]} 72. Ke6 $1 {[%emt 0:00:54]} Kc6 {[%emt 0:00:35]} 73. Be7 {[%emt 0:00:25]} Nc4 {[%emt 0:00:26]} 74. Be4+ {[%emt 0:00:51]} Kb6 {[%emt 0:00:06]} 75. Bd8+ {[%emt 0:00:40] A strong pair of Bishops.} Ka6 {[%emt 0:00:08]} 76. Bd3 {[%emt 0:00:56]} Bb6 {[%emt 0:01:44]} 77. Bf6 $1 {[%emt 0:00:32]} Bc7 {[%emt 0:00:05]} 78. Kd5 {[%emt 0:00:35]} Nb2 {[%emt 0:01:28]} 79. Bxb5+ {[%emt 0:00:20]} Kxb5 {[%emt 0:00:07]} 80. Bxe5 {[%emt 0:00:03]} Bxe5 {[%emt 0:00:05]} 81. Kxe5 {[%emt 0:00:06] Weighted Error Value: White=0.10 (very precise) /Black=0.09 (flawless) .  Mistake:       	White=2     	Black=1      Inaccurate:     	White=5     	Black=5      OK:         	White=28    	Black=25     Best:        	White=4     	Black=6      Strong:       	White=2     	Black=2} 1/2-1/2

[Event "14th Karen Asrian Memorial 2024"]
[Site "Yerevan"]
[Date "2024.04.28"]
[Round "5.7"]
[White "Chaqryan, Erik"]
[Black "Hayrapetyan, Edgar"]
[Result "0-1"]
[ECO "A20"]
[WhiteElo "2326"]
[BlackElo "2340"]
[Annotator "TA"]
[PlyCount "104"]
[EventDate "2024.04.24"]
[EventType "swiss"]
[EventCountry "ARM"]
[SourceTitle "playchess.com"]
[Source "ChessBase"]
[SourceQuality "1"]
[TimeControl "40/5400+30:1800+30"]

{[%evp 21,104,0,4,0,36,0,-8,0,0,-56,15,0,0,0,0,0,22,22,37,29,73,0,0,0,0,0,6,-69,-43,-70,-53,-58,-51,-77,-92,-80,-87,-88,-82,-90,-79,-87,-57,-67,-68,-54,-44,-71,-26,-42,-7,-8,-12,-25,-31,-25,-29,-325,-342,-328,-320,-334,-341,-341,-335,-436,-417,-531,-514,-764,-814,-772,-814,-814,-814,-749,-749,-686,-686,-462,-433,-2184,-2207,-1745,-1415]} 1. c4 {[%emt 0:00:13]} e5 {[%emt 0:05:11]} 2. g3 {[%emt 0:03:48]} c6 {[%emt 0:01:00]} 3. Nf3 {[%emt 0:03:30]} e4 {[%emt 0:01:47]} 4. Nd4 {[%emt 0:00:05]} d5 {[%emt 0:00:04]} 5. cxd5 {[%emt 0:00:12]} Qxd5 {[%emt 0:00:04]} 6. Nc2 {[%emt 0:00:21] A20: English Opening: 1...e5.} Nf6 {[%emt 0:00:06]} 7. Nc3 {[%emt 0:01:04]} Qe5 {[%emt 0:00:04]} 8. Bg2 {[%emt 0:00:10]} Na6 {[%emt 0:00:04]} 9. O-O {[%emt 0:00:50]} Be7 {[%emt 0:01:50]} 10. d3 {[%emt 0:07:47]} exd3 {[%emt 0:00:22]} 11. Qxd3 {[%emt 0:00:06]} O-O {[%emt 0:08:31]} 12. e4 {[%emt 0:04:39]} Qh5 {[%emt 0:01:48]} 13. f3 {[%emt 0:17:42]} Nc5 {[%emt 0:01:37]} 14. Qe2 {[%emt 0:02:10]} b6 {[%emt 0:02:57]} 15. g4 $146 {[%emt 0:14:17]} (15. Rd1 $11) ({Predecessor:} 15. Rd1 Ba6 16. Qe3 Rfd8 17. Nd4 Nd3 18. Nb3 c5 19. Nd5 Nxd5 20. exd5 Re8 21. Rxd3 {0-1 Yanez Rodriguez,W (2131)-Alonso Garcia,A (2424) Madrid-chT Honor 2223 2022 (5.3)}) 15... Qh4 {[%emt 0:13:27]} ({Black should play} 15... Qe5 $1 $15 16. f4 Qc7) 16. Rd1 {[%emt 0:35:14]} h5 {[%emt 0:20:11]} 17. g5 {[%emt 0:00:04]} Nh7 {[%emt 0:14:42]} 18. f4 {[%emt 0:00:03]} Ne6 {[%emt 0:05:49]} 19. Rf1 {[%emt 0:00:05]} Bc5+ {[%emt 0:00:48]} 20. Kh1 {[%emt 0:00:10]} a5 {[%emt 0:01:24]} 21. Be3 {[%emt 0:01:16]} (21. f5 $16) 21... Ba6 {[%emt 0:00:53]} 22. Qf2 {[%emt 0:00:04]} Qxf2 {[%emt 0:00:18]} 23. Rxf2 {[%emt 0:00:04]} Rfd8 {[%emt 0:00:39]} 24. Bxc5 {[%emt 0:06:15]} ({Better is} 24. Re1 $11) 24... Nxc5 $15 {[%emt 0:00:02]} 25. Ne1 {[%emt 0:00:03]} Nf8 {[%emt 0:00:36]} 26. e5 {[%emt 0:00:06]} Rac8 {[%emt 0:00:14]} 27. Kg1 {[%emt 0:02:53]} Ng6 {[%emt 0:00:06]} 28. Ne4 {[%emt 0:00:10]} Rd4 {[%emt 0:01:26]} 29. Nxc5 {[%emt 0:00:42]} bxc5 {[%emt 0:00:01]} 30. f5 {[%emt 0:00:40]} Nxe5 {[%emt 0:03:13]} 31. Nf3 {[%emt 0:00:03]} Nxf3+ {[%emt 0:00:54]} 32. Bxf3 {[%emt 0:00:03]} h4 {[%emt 0:00:07]} 33. Rc1 {[%emt 0:00:04]} c4 {[%emt 0:00:08]} 34. Re1 {[%emt 0:01:39]} Rb8 {[%emt 0:00:17]} 35. h3 {[%emt 0:00:40]} Rf4 {[%emt 0:03:50]} 36. Re5 {[%emt 0:00:19]} a4 {[%emt 0:00:01]} 37. g6 {[%emt 0:00:56]} (37. Bxc6 {simplifies} Rxf2 38. Kxf2 Rxb2+ 39. Kf3) 37... a3 {[%emt 0:03:45]} 38. bxa3 {[%emt 0:00:12]} (38. gxf7+ Kxf7 39. bxa3 Rb1+ 40. Kh2 Kf8 $17) 38... c3 {[%emt 0:03:14]} 39. Rc5 $2 {[%emt 0:00:46][%mdl 8192] [#]} (39. Re3 $11 {and White is okay.}) 39... Rc4 $1 $19 {[%emt 0:03:02]} 40. Rxc4 {[%emt 0:00:00]} Bxc4 {[%emt 0:00:00]} 41. Rc2 {[%emt 0:14:06]} Rb1+ {[%emt 0:01:42]} 42. Kf2 {[%emt 0:00:04]} Rb2 {[%emt 0:00:04]} 43. Be4 {[%emt 0:00:02]} fxg6 {[%emt 0:00:24]} ({Less strong is} 43... Bxa2 44. Ke3 $17) (43... Rxa2 44. Rxa2 Bxa2 45. Ke3 $11) 44. fxg6 {[%emt 0:01:02]} Bxa2 {[%emt 0:00:34]} 45. a4 {[%emt 0:07:14]} Bb3 {[%emt 0:14:59]} 46. Rxb2 {[%emt 0:00:05]} cxb2 {[%emt 0:00:03]} 47. a5 {[%emt 0:00:03]} Bd5 {[%emt 0:00:02]} 48. Bb1 {[%emt 0:02:28]} c5 {[%emt 0:00:51]} 49. a6 {[%emt 0:07:49]} Kf8 {[%emt 0:00:53]} ({Not} 49... c4 50. Ke3 $14) 50. Ke3 {[%emt 0:01:13]} Ke7 {[%emt 0:00:12]} 51. Kf4 {[%emt 0:01:55]} (51. Kd2 $142) 51... Kd6 $19 {[%emt 0:01:05]} 52. a7 {[%emt 0:00:05]} Bg2 {[%emt 0:21:09]} (52... c4 53. Kf5 Kc7 54. Ke5) 0-1

[Event "14th Karen Asrian Memorial 2024"]
[Site "Yerevan"]
[Date "2024.04.28"]
[Round "5.8"]
[White "Sanikidze, Tornike"]
[Black "Sukiasyan, Vahe A."]
[Result "1/2-1/2"]
[ECO "E12"]
[WhiteElo "2453"]
[BlackElo "2258"]
[Annotator "TA"]
[PlyCount "92"]
[EventDate "2024.04.24"]
[EventType "swiss"]
[EventCountry "ARM"]
[SourceTitle "playchess.com"]
[Source "ChessBase"]
[SourceQuality "1"]
[TimeControl "40/5400+30:1800+30"]

{[%evp 15,92,0,0,-6,-5,-12,0,0,0,0,0,2,18,0,0,-1,35,47,30,0,2,9,0,0,0,7,45,46,46,25,99,55,47,-28,-41,-101,-99,-109,-117,-123,-135,-225,-97,-92,-104,-106,-93,-223,-216,-221,-221,-224,-224,-247,-247,-239,-233,-242,-237,-231,-227,-400,-104,-154,-97,-102,-87,-102,-102,-102,-80,-83,-97,-104,-4,-4,-4,-4,-4]} 1. d4 {[%emt 0:00:02]} Nf6 {[%emt 0:00:07]} 2. c4 {[%emt 0:00:08]} e6 {[%emt 0:00:14]} 3. Nf3 {[%emt 0:00:07]} b6 {[%emt 0:00:08]} 4. a3 {[%emt 0:00:05]} Ba6 {[%emt 0:00:05]} 5. Qb3 {[%emt 0:00:26]} Bb7 {[%emt 0:00:12]} 6. Nc3 {[%emt 0:00:22]} d5 {[%emt 0:00:05]} 7. cxd5 {[%emt 0:00:16]} Nxd5 {[%emt 0:00:05]} 8. Qa4+ {[%emt 0:00:04]} Qd7 {[%emt 0:10:16]} 9. Qc2 {[%emt 0:00:10]} Nxc3 {[%emt 0:11:05]} 10. bxc3 {[%emt 0:01:56]} Be7 {[%emt 0:01:35]} 11. e4 {[%emt 0:00:07]} O-O {[%emt 0:00:06]} 12. Bd3 {[%emt 0:00:08]} c5 {[%emt 0:01:23]} 13. O-O {[%emt 0:00:16][%cal Od4d5]} h6 {[%emt 0:11:56]} 14. Rd1 {[%emt 0:00:31][%cal Od4d5]} Qc7 {[%emt 0:04:18]} 15. Qe2 {[%emt 0:00:14][%cal Od4d5]} Nd7 {[%emt 0:01:03]} 16. a4 {[%emt 0:07:03]} Rfd8 {[%emt 0:04:11]} 17. h3 {[%emt 0:05:24]} Rac8 {[%emt 0:02:16]} 18. Bd2 {[%emt 0:11:14]} Bf6 {[%emt 0:07:04]} 19. Be3 {[%emt 0:09:21]} Nb8 {[%emt 0:04:16]} 20. Rac1 {[%emt 0:22:13]} Qc6 {[%emt 0:03:03]} 21. Nh2 {[%emt 0:06:24][%cal Oa4a5]} cxd4 {[%emt 0:09:12]} 22. cxd4 {[%emt 0:00:16]} Qxa4 {[%emt 0:03:07]} (22... Qe8 $11 {keeps the balance.}) 23. Ra1 {[%emt 0:00:11]} Qc6 {[%emt 0:01:16]} 24. Rxa7 {[%emt 0:00:17]} (24. Qb2 $1 $14) 24... Bxd4 $11 {[%emt 0:06:03]} 25. Rc1 {[%emt 0:02:10]} ({White should try} 25. Bb5 $1 $15 Qxe4 26. Rxb7 Bxe3 27. Rxd8+ Rxd8 28. Qf3 Qxf3 29. Nxf3) 25... Qd7 {[%emt 0:01:45]} 26. Rxc8 {[%emt 0:04:54]} Qxc8 {[%emt 0:00:04]} 27. Nf3 {[%emt 0:01:11]} Nc6 {[%emt 0:02:12]} 28. Bxd4 {[%emt 0:01:22]} (28. Ra4 $17 Bc5 29. Bxc5 bxc5 30. Ra3) 28... Nxd4 {[%emt 0:00:42]} (28... Nxa7 $19 29. Bxb6 Qc1+ 30. Kh2 Ra8) 29. Nxd4 $17 {[%emt 0:00:08]} Rxd4 {[%emt 0:00:05]} 30. Qe3 {[%emt 0:01:14]} e5 {[%emt 0:00:46]} 31. Qg3 {[%emt 0:01:07]} (31. Kh2 $17 {might work better.}) 31... Bxe4 $19 {[%emt 0:01:14]} 32. Bxe4 {[%emt 0:01:27]} Rxe4 {[%emt 0:00:05][%mdl 4096] Endgame. KQR-KQR} 33. Kh2 {[%emt 0:02:12]} Rf4 {[%emt 0:00:39] Wards off Qf3} 34. Re7 {[%emt 0:08:07]} Qf5 {[%emt 0:01:01]} 35. f3 {[%emt 0:00:15]} Kh7 {[%emt 0:02:08]} 36. Qe1 {[%emt 0:01:13] [#]} e4 {[%emt 0:06:21]} 37. fxe4 {[%emt 0:00:42]} Qf6 {[%emt 0:00:08]} 38. Qb4 {[%emt 0:00:08]} (38. Re8 {is a better defense.}) 38... Qg6 $2 {[%emt 0:02:16]} (38... Rf1 $19 {and Black stays clearly on top. ( -> ...Qf4+)} 39. e5 Qf5) 39. Qd4 $17 {[%emt 0:01:21]} Rf6 {[%emt 0:01:39]} (39... Rf1 $142 {Threatens to win with ...Qg5.} 40. Rd7 b5) 40. Rb7 {[%emt 0:00:00]} Rd6 {[%emt 0:00:00]} 41. Qe5 {[%emt 0:05:00]} Rd2 {[%emt 0:12:09]} 42. Qg3 {[%emt 0:00:09]} Qf6 {[%emt 0:01:16] aiming for ...Rd1.} 43. e5 {[%emt 0:03:44]} Qe6 {[%emt 0:03:15]} 44. Qf4 {[%emt 0:00:14][%csl LRd2,LRf7]} Rd7 {[%emt 0:00:25]} (44... Re2 $17) 45. Rxb6 $1 $11 {[%emt 0:00:28]} Qxb6 {[%emt 0:00:50]} 46. Qf5+ {[%emt 0:00:04]} Qg6 {[%emt 0:00:20] Weighted Error Value: White=0.21 (precise) /Black=0.32.  Missed win:     	---       	Black=1      Mistake:       	White=5     	Black=4      Inaccurate:     	White=2     	Black=2      OK:         	White=10    	Black=17     Best:        	White=3     	Black=1      Strong:       	White=1     	---        Brilliant:      	---       	Black=1} 1/2-1/2

[Event "14th Karen Asrian Memorial 2024"]
[Site "Yerevan"]
[Date "2024.04.29"]
[Round "6.1"]
[White "Ohanyan, Emin"]
[Black "Petrosyan, Manuel"]
[Result "1/2-1/2"]
[ECO "D38"]
[WhiteElo "2488"]
[BlackElo "2616"]
[Annotator "TA"]
[PlyCount "55"]
[EventDate "2024.04.24"]
[EventType "swiss"]
[EventCountry "ARM"]
[SourceTitle "playchess.com"]
[Source "ChessBase"]
[SourceQuality "1"]
[TimeControl "40/5400+30:1800+30"]

{[%evp 18,55,18,18,5,25,15,15,9,0,0,0,0,0,0,0,0,0,0,0,0,0,0,0,0,0,0,0,0,0,0,0,4,3,5,7,7,7,5,0]} 1. Nf3 {[%emt 0:11:27]} d5 {[%emt 0:01:11]} 2. d4 {[%emt 0:00:18]} Nf6 {[%emt 0:00:24]} 3. c4 {[%emt 0:00:04]} e6 {[%emt 0:00:10]} 4. Nc3 {[%emt 0:00:02]} Bb4 {[%emt 0:00:13]} 5. Bg5 {[%emt 0:00:05]} h6 {[%emt 0:00:41]} 6. Bxf6 {[%emt 0:00:06]} Qxf6 {[%emt 0:00:04]} 7. e3 {[%emt 0:00:03]} O-O {[%emt 0:00:21]} 8. Rc1 {[%emt 0:00:02]} dxc4 {[%emt 0:00:24]} 9. Bxc4 {[%emt 0:00:13]} c5 {[%emt 0:00:05]} 10. O-O {[%emt 0:00:16] White wants to play Ne4.} cxd4 {[%emt 0:00:05]} 11. Ne4 {[%emt 0:00:03]} Qe7 {[%emt 0:00:16]} 12. a3 {[%emt 0:00:08] The position is equal.} Ba5 {[%emt 0:00:10]} 13. exd4 {[%emt 0:00:07]} (13. Qxd4 {is more complex.} Rd8 14. Qe5 Bc7 15. Qc5) 13... Rd8 {[%emt 0:01:00]} 14. Rc2 {[%emt 0:00:14]} Nd7 {[%emt 0:01:33]} 15. d5 {[%emt 0:00:18]} exd5 {[%emt 0:10:50]} 16. Qxd5 {[%emt 0:00:09]} Nb6 {[%emt 0:02:13]} 17. Qxa5 {[%emt 0:00:06] [#] Hoping for Re1.} Qxe4 {[%emt 0:00:24]} 18. Bb3 {[%emt 0:00:12][%cal Bc4b3,Bb3d1,Bd1g4][%mdl 32]} Be6 {[%emt 0:04:29]} 19. Re1 {[%emt 0:00:28]} Rd1 {[%emt 0:05:53]} 20. Rc8+ {[%emt 0:01:18]} Rxc8 {[%emt 0:00:58]} ({Much weaker is} 20... Bxc8 $6 21. Bxd1 Qd3 22. Re8+ Kh7 23. Be2 $16) 21. Bxd1 {[%emt 0:00:04]} Qc6 {[%emt 0:03:54]} 22. Nd4 {[%emt 0:03:37]} (22. Qxa7 $2 {perishes.} Ra8 23. Nd4 Rxa7 $19) 22... Qd5 {[%emt 0:01:29]} 23. Qxd5 {[%emt 0:02:03]} Bxd5 {[%emt 0:00:12]} 24. Bg4 {[%emt 0:03:51]} Rd8 {[%emt 0:05:34]} 25. Rd1 {[%emt 0:09:46]} Be4 {[%emt 0:03:50]} 26. Nb5 {[%emt 0:04:15][%csl LRa7,LRd8]} Rxd1+ {[%emt 0:02:34]} 27. Bxd1 {[%emt 0:00:23]} Kf8 {[%emt 0:09:35]} 28. Nxa7 {[%emt 0:06:33] Not much happened in this game.   Weighted Error Value: White=0.01 (flawless) /Black=0.00 (flawless) .  OK:         	White=11    	Black=12     Best:        	---       	Black=1} 1/2-1/2

[Event "14th Karen Asrian Memorial 2024"]
[Site "Yerevan"]
[Date "2024.04.29"]
[Round "6.2"]
[White "Davtyan, Arsen"]
[Black "Hayrapetyan, Hovik"]
[Result "1/2-1/2"]
[ECO "B51"]
[WhiteElo "2421"]
[BlackElo "2432"]
[Annotator "TA"]
[PlyCount "84"]
[EventDate "2024.04.24"]
[EventType "swiss"]
[EventCountry "ARM"]
[SourceTitle "playchess.com"]
[Source "ChessBase"]
[SourceQuality "1"]
[TimeControl "40/5400+30:1800+30"]

{[%evp 27,84,17,33,10,16,0,0,0,0,0,0,0,11,16,0,0,34,37,39,29,20,28,33,19,62,25,25,0,0,0,0,0,89,79,79,0,-6,-10,115,110,193,47,40,50,37,0,0,0,0,0,0,0,0,0,0,0,0,0,0]} 1. e4 {[%emt 0:02:01]} c5 {[%emt 0:00:02]} 2. Nf3 {[%emt 0:00:06]} d6 {[%emt 0:00:04]} 3. Bb5+ {[%emt 0:00:05]} Nd7 {[%emt 0:00:04]} 4. d4 {[%emt 0:00:07]} cxd4 {[%emt 0:00:07]} 5. Qxd4 {[%emt 0:00:09]} a6 {[%emt 0:00:05]} 6. Be2 {[%emt 0:00:07] B51: Sicilian: Moscow Variation (3 Bb5+) without 3...Bd7.} Ngf6 {[%emt 0:00:38]} 7. O-O {[%emt 0:00:12]} g6 {[%emt 0:01:40]} 8. Nc3 {[%emt 0:00:13]} Bg7 {[%emt 0:00:06]} 9. Rd1 {[%emt 0:00:09]} O-O {[%emt 0:00:10]} 10. e5 {[%emt 0:00:22]} Nh5 {[%emt 0:23:57]} 11. Qh4 {[%emt 0:00:20]} dxe5 {[%emt 0:17:19]} 12. Ng5 {[%emt 0:00:20]} Nhf6 $146 {[%emt 0:05:29]} ({Predecessor:} 12... h6 13. Nge4 e6 14. Qxd8 Rxd8 15. Be3 Nf4 16. Bf3 Nd5 17. Nxd5 exd5 18. Rxd5 f5 {1-0 Jiang,T (1917)-Aswinika Mani,R (1472) Wch U14 Girls 2023 (1)}) 13. Be3 {[%emt 0:01:01]} e6 {[%emt 0:04:23]} 14. Rd6 {[%emt 0:01:40]} Qe7 {[%emt 0:01:47]} 15. Rad1 {[%emt 0:03:29]} Re8 $1 {[%emt 0:01:04]} 16. Qh3 {[%emt 0:28:07]} h6 {[%emt 0:09:24]} 17. Nge4 {[%emt 0:05:12]} Nxe4 {[%emt 0:00:06]} 18. Nxe4 {[%emt 0:00:02]} f5 $1 {[%emt 0:02:30]} 19. Nc5 {[%emt 0:04:57]} Nxc5 {[%emt 0:00:17]} 20. Bxc5 {[%emt 0:00:05]} Qc7 {[%emt 0:02:07]} 21. Qe3 {[%emt 0:13:46]} Kh7 {[%emt 0:03:11]} 22. Bb6 {[%emt 0:04:49]} Qxc2 {[%emt 0:01:38]} 23. Rc1 {[%emt 0:10:49]} Qxb2 {[%emt 0:00:18]} 24. Rc7 {[%emt 0:00:30]} Qb4 $1 {[%emt 0:03:17]} 25. Rd1 {[%emt 0:02:46]} (25. Qxe5 $2 Qe1+ 26. Bf1 Qxe5 $19) (25. Rxg7+ Kxg7 26. Qxe5+ Kh7 $16) 25... e4 {[%emt 0:05:25]} 26. a3 {[%emt 0:05:31]} (26. Bc5 {is interesting.} Qa5 27. Qg3 e5 28. Bd6) 26... Qf8 $1 {[%emt 0:03:36]} 27. Bc4 {[%emt 0:04:42]} (27. Bc5 {keeps more tension.} Qf6 28. Rd6 Qg5 29. Bd4) 27... Qf6 {[%emt 0:01:04]} 28. Rd6 {[%emt 0:00:30]} Re7 $1 {[%emt 0:01:32]} (28... Qa1+ $2 29. Bf1 Kg8 30. Bd4 Bxd4 31. Rxd4 $18) 29. Qc5 $1 {[%emt 0:00:54]} (29. Bd4 $2 Qxd4 30. Rxd4 Rxc7 $19) 29... e3 {[%emt 0:03:56]} (29... Rxc7 $11 30. Qxc7 Qa1+ 31. Bf1 Qc3 (31... Qxa3 32. Bd4 e5 33. Bxe5)) 30. fxe3 $1 $16 {[%emt 0:01:19]} f4 {[%emt 0:01:08] [#]} 31. Rd1 {[%emt 0:08:07]} (31. Rxc8 $2 Qa1+ 32. Bf1 fxe3 33. Rxa8 (33. Qc1 $2 Rxc8 34. Qxa1 Bxa1 $19) 33... e2 $19) (31. exf4 $1 $16 Rxc7 32. Qxc7 Qa1+ 33. Bf1) 31... Rxc7 $11 {[%emt 0:00:54]} 32. Qxc7 {[%emt 0:00:01]} e5 {[%emt 0:05:15]} (32... fxe3 $11 {keeps the balance.} 33. Bxe3 Qe5 34. Qxe5 Bxe5) 33. Rd8 $16 {[%emt 0:02:23]} h5 {[%emt 0:00:05] [#]} (33... Qh4 $16 34. Bg8+ (34. Rxc8 $2 Qe1+ 35. Bf1 fxe3 $19) 34... Kh8) 34. exf4 {[%emt 0:01:50]} (34. Rxc8 $2 Rxc8 35. Qxc8 Qxb6 36. Bg8+ Kh6 $19) ({White should play} 34. Bg8+ $1 $18 Kh6 35. exf4 (35. Rxc8 $2 Rxc8 36. Qxc8 Qxb6 $19) (35. h3 f3 $11) 35... exf4 36. Bd4 (36. Rxc8 $2 Rxc8 37. Qxc8 Qxb6+ 38. Kf1 Qb1+ 39. Ke2 Qe4+ 40. Kd1 Qd3+ 41. Kc1 Qf1+ 42. Kd2 Qxg2+ 43. Kd3 Qf1+ 44. Kd2 f3 $19) 36... Qxd4+ 37. Rxd4 Bxd4+ 38. Kh1) 34... Be6 $1 $14 {[%emt 0:00:36]} ({But not} 34... exf4 $2 35. Bd4 $18 (35. Rxc8 $2 {too greedy.} Rxc8 36. Qxc8 Qxb6+ 37. Kf1 Qb1+ 38. Kf2 Qc2+ 39. Kf3 Qc3+ 40. Kxf4 Bh6+ 41. Ke4 Qe3+ 42. Kd5 b5 $19) (35. Rxc8 $2 {perishes.} Rxc8 36. Qxc8 Qxb6+ 37. Kf1 Qb1+ 38. Kf2 Qc2+ 39. Kf3 Qc3+ 40. Kxf4 Bh6+ 41. Ke4 Qe3+ 42. Kd5 b5 $19)) 35. Rxa8 {[%emt 0:00:34]} Bxc4 {[%emt 0:00:04]} 36. Qxc4 {[%emt 0:00:40]} Qxb6+ {[%emt 0:00:03]} 37. Kf1 {[%emt 0:00:03]} exf4 {[%emt 0:00:25]} 38. Qxf4 {[%emt 0:00:59]} Qb1+ {[%emt 0:00:06]} 39. Kf2 {[%emt 0:00:10]} Qb2+ {[%emt 0:00:05]} 40. Kf1 {[%emt 0:00:00]} Qb1+ {[%emt 0:00:00]} 41. Kf2 {[%emt 0:00:28]} Qb2+ {[%emt 0:09:25]} 42. Kf1 {[%emt 0:00:02]} Qb1+ {[%emt 0:05:45]} 1/2-1/2